fUSD/lending_fUSD_20241021
["ID","MTS","AMOUNT","RATE_DAILY","PERIOD"]
[340616273,1729534246011,-548.55,0.00047945,120]
[340616274,1729534246021,-548.55,0.00047945,120]
[340616275,1729534246031,-548.55,0.00047945,120]
[340616276,1729534246040,-548.55,0.00047945,120]
[340616277,1729534246049,-548.55,0.00047945,120]
[340616278,1729534246059,-548.55,0.00047945,120]
[340616279,1729534246068,-548.55,0.00047945,120]
[340616280,1729534246078,-548.55,0.00047945,120]
[340616281,1729534246087,-548.55,0.00047945,120]
[340616282,1729534246097,-548.55,0.00047945,120]
[340616283,1729534246107,-548.55,0.00047945,120]
[340616284,1729534246116,-150.0,0.00047947,30]
[340616285,1729534246126,-150.0,0.00047951,120]
[340616286,1729534246135,-202.31694966,0.00047955,30]
[340616287,1729534246144,-156.10905289,0.00047955,30]
[340616288,1729534246155,-2044.113344,0.00047967,2]
[340616289,1729534246164,-2582.092354,0.00047967,2]
[340616290,1729534246174,-4011.0817503,0.00047967,2]
[340616291,1729534246183,-432.5437701,0.00047967,2]
[340616292,1729534246194,-37604.620825,0.00047967,2]
[340616293,1729534246204,-202.31694966,0.0004797,30]
[340616294,1729534246214,-156.10905289,0.0004797,30]
[340616295,1729534246224,-150.0,0.00047972,30]
[340616296,1729534246234,-202.31694966,0.00047985,30]
[340616297,1729534246243,-156.10905289,0.00047985,30]
[340616298,1729534246252,-412.0,0.00047986,120]
[340616299,1729534246262,-150.0,0.00047996,30]
[340616300,1729534246271,-2500.0,0.00047999,120]
[340616301,1729534246281,-2500.0,0.00047999,120]
[340616302,1729534246290,-2500.0,0.00047999,120]
[340616303,1729534246299,-2401.75,0.00047999,120]
[340616304,1729534246309,-202.31694966,0.00047999,30]
[340616305,1729534246318,-156.10905289,0.00047999,30]
[340616306,1729534246327,-50000.0,0.00048,38]
[340616307,1729534246337,-50000.0,0.00048,48]
[340616308,1729534246346,-50000.0,0.00048,58]
[340616309,1729534246356,-10000.0,0.00048,15]
[340616310,1729534246366,-10000.0,0.00048,10]
[340616311,1729534246375,-1675.44583029,0.00048,120]
[340616312,1729534246385,-150.0,0.00048,120]
[340616313,1729534246394,-500.0,0.00048,120]
[340616314,1729534246405,-5000.0,0.00048,120]
[340616315,1729534246415,-5000.0,0.00048,120]
[340616316,1729534246424,-5000.0,0.00048,120]
[340616317,1729534246434,-2000.0,0.00048,30]
[340616318,1729534246443,-495.40695541,0.00048,120]
[340616319,1729534246452,-10670.0,0.00048,90]
[340616320,1729534246462,-281.83898362,0.00048,120]
[340616321,1729534246471,-10418.75476438,0.00048,120]
[340616322,1729534246481,-102537.45878955,0.00048,120]
[340616323,1729534246575,-4943.43172972,0.00044112,2]
[340616324,1729534246587,-1659.63472925,0.00044112,2]
[340616325,1729534246597,-155.08364934,0.000459,120]
[340616326,1729534246607,-372.0,0.00047947,7]
[340616327,1729534246616,-9834.29107187,0.00048,120]
[340616328,1729534246628,-114642.30796364,0.00048,120]
[340616329,1729534246639,-511.51386836,0.00048,120]
[340616330,1729534246650,-337.975,0.00048,120]
[340616331,1729534246665,-5017.54622921,0.00048,120]
[340616351,1729534642606,158.43,0.00010959,2]
[340616352,1729534817472,-210.32,0.00025,2]
[340616353,1729534838971,250.0,0.0001,2]
[340616354,1729534840086,300.0,0.00012,2]
[340616355,1729534841178,350.0,0.00014,2]
[340616356,1729534843697,400.0,0.00016,2]
[340616357,1729534844950,450.0,0.00018,2]
[340616358,1729534845903,500.0,0.0002,2]
[340616359,1729534847005,550.0,0.00022,2]
[340616360,1729534921860,300.0,0.00019725,2]
[340616361,1729534922737,420.0,0.00021484,2]
[340616362,1729534923521,587.0,0.00023401,2]
[340616363,1729534924316,823.0,0.00025488,2]
[340616367,1729535054055,200.0,0.00023,2]
[340616368,1729535054161,200.0,0.00023,2]
[340616369,1729535108354,44670.0,0.00011,2]
[340616370,1729535108384,49789.68,0.00011,2]
[340616371,1729535108420,50000.0,0.00011,2]
[340616372,1729535108451,50000.0,0.00011,2]
[340616373,1729535108484,15810.321,0.00011,2]
[340616374,1729535108510,4577243.69102587,0.00011,2]
[340616375,1729535128818,169.95,0.00010959,2]
[340616376,1729535129712,6651.67743712,0.000101,2]
[340616379,1729535154470,297.87044918,6.94e-05,2]
[340616386,1729535280599,44265.96430457,0.00011,2]
[340616404,1729535432190,-554.37197394,0.0002,2]
[340616405,1729535432283,-499.6,0.0002,2]
[340616406,1729535432294,-1000.3932,0.0002,2]
[340616407,1729535432306,-1000.395,0.0002,2]
[340616408,1729535432319,-1218.07657921,0.0002,2]
[340616409,1729535432395,-671.83,0.0002,2]
[340616410,1729535432407,-11271.9913643,0.0002,2]
[340616411,1729535432417,-2348.76309791,0.00025,30]
[340616412,1729535432427,-2100.0,0.00025,30]
[340616413,1729535432437,-4586.97905451,0.00034007,30]
[340616414,1729535432447,-240.4,0.00034007,2]
[340616415,1729535432457,-1382.2566,0.00035849,2]
[340616416,1729535432467,-760.718,0.00035949,2]
[340616417,1729535432476,-150.0,0.00035949,2]
[340616418,1729535432485,-17551.57910317,0.00039,2]
[340616419,1729535432501,-5669.83964509,0.00039,2]
[340616420,1729535432513,-404.0,0.00039,2]
[340616421,1729535432525,-347.40099992,0.00039,2]
[340616422,1729535432572,-20987.39187533,0.00039,2]
[340616424,1729535432583,-1173.42910084,0.00039,30]
[340616427,1729535432594,-150.99,0.00039,30]
[340616429,1729535432603,-441.74661811,0.00039,2]
[340616690,1729535438290,-58.24338189,0.00039,2]
[340616691,1729535438300,-493.65,0.0003924,2]
[340616692,1729535438310,-2505.94184505,0.00039797,2]
[340616693,1729535438321,-1049.74515495,0.00039797,2]
[340616694,1729535438330,-792.66,0.00039797,2]
[340616695,1729535438341,-679.83,0.00039797,2]
[340616696,1729535438354,-150.0,0.00039953,2]
[340616697,1729535438364,-3802.57433549,0.0004,120]
[340616709,1729535440135,-4908.39644386,0.0004,120]
[340616710,1729535440145,-34.071136,0.00041158,2]
[340616711,1729535440158,-122.928864,0.00041158,2]
[340616712,1729535440168,-158.91,0.00041158,2]
[340616713,1729535440178,-440.43,0.00041158,120]
[340616714,1729535440188,-493.65,0.00041504,2]
[340616715,1729535440197,-150.99,0.00041836,2]
[340616716,1729535440207,-150.0,0.00042075,2]
[340616717,1729535440216,-250.0,0.00042106,2]
[340616718,1729535440226,-250.0,0.0004217,120]
[340616719,1729535440236,-565.93218248,0.000422,120]
[340616720,1729535440245,-168.883,0.0004222,63]
[340616721,1729535440255,-952.61201402,0.0004222,63]
[340616722,1729535440448,-263.494,0.0004222,63]
[340616723,1729535440460,-847.9,0.0004222,63]
[340616730,1729535443208,-1187.24198598,0.0004222,63]
[340616731,1729535443218,-225.15,0.00042283,120]
[340616732,1729535443228,-1593.2645898,0.0004232,2]
[340616733,1729535443239,-765.12087331,0.0004232,2]
[340616734,1729535443251,-30034.39533689,0.0004232,2]
[340616735,1729535443261,-150.01,0.00042357,2]
[340616736,1729535443271,-3146.0328,0.00042439,2]
[340616737,1729535443287,-597.14,0.00042451,2]
[340616738,1729535443300,-6917.89998678,0.00042538,2]
[340616739,1729535443314,-38631.7385,0.00042539,2]
[340616740,1729535443327,-1020.4687,0.00042563,2]
[340616741,1729535443339,-1000.0,0.00042565,2]
[340616742,1729535443352,-250.0,0.00042945,2]
[340616743,1729535443366,-154.82,0.00043324,120]
[340616744,1729535443378,-23900.0,0.00043394,2]
[340616745,1729535443390,-493.65,0.00043768,2]
[340616746,1729535443402,-500.0,0.00044212,120]
[340616747,1729535443413,-150.0,0.00044343,2]
[340616748,1729535443425,-161.02985052,0.00044407,10]
[340616749,1729535443438,-500.0,0.00044486,120]
[340616750,1729535443452,-500.0,0.0004476,120]
[340616751,1729535443464,-225.15,0.00044867,120]
[340616752,1729535443476,-500.0,0.00045034,120]
[340616753,1729535443487,-4025.0,0.00045191,117]
[340616754,1729535443498,-500.0,0.00045308,120]
[340616756,1729535443510,-199.33664307,0.00045582,120]
[340616758,1729535443521,-3092.50916165,0.000456,15]
[340616759,1729535443531,-518.1908,0.0004569,2]
[340616760,1729535443540,-790.6936,0.000457,2]
[340616761,1729535443551,-8960.2397,0.000457,2]
[340616762,1729535443562,-13430.6738,0.000457,2]
[340616763,1729535443572,-2538.3461,0.000457,2]
[340616764,1729535443582,-500.0,0.00045789,120]
[340616766,1729535443595,-227.791929,0.00045789,120]
[340616768,1729535443606,-1715.83,0.00045789,120]
[340616770,1729535443617,-131329.992257,0.0004579,9]
[340616773,1729535443627,-151.49,0.0004579,2]
[340616777,1729535443639,-500.0,0.00045799,120]
[340616780,1729535443649,-500.0,0.00045799,120]
[340616783,1729535443660,-97738.58362523,0.000458,30]
[340616788,1729535443678,-16173.34873012,0.000458,30]
[340616792,1729535443692,-592.3622745,0.000458,30]
[340616795,1729535443704,-1135.73007,0.000458,30]
[340616800,1729535443717,-710.0,0.000458,30]
[340616802,1729535443729,-888.44468284,0.000458,30]
[340616804,1729535443741,-3367.5717,0.000458,30]
[340616806,1729535443753,-434.12000044,0.000458,30]
[340616809,1729535443765,-7345.5574327,0.000458,30]
[340617048,1729535446048,-1319.481,0.00037444,2]
[340617050,1729535446058,-370.58734935,0.00045699,28]
[340617053,1729535446069,-1417.8766838,0.000458,30]
[340617055,1729535446081,-283.83765539,0.000458,30]
[340617084,1729535446353,-3420.25591204,0.000458,30]
[340617087,1729535446373,-64189.02712839,0.000458,30]
[340617425,1729536060585,156.4,0.00010959,2]
[340617426,1729536121867,300.0,0.00019725,2]
[340617427,1729536213823,-1398.0,0.000219,2]
[340617440,1729536632266,-150.0,0.00034548,10]
[340617442,1729536632276,-172.175,0.00038028,2]
[340617443,1729536632286,-587.971,0.00038028,2]
[340617444,1729536632299,-4880.012,0.00038028,2]
[340617445,1729536632308,-5889.0,0.00038028,2]
[340617446,1729536632318,-150.0,0.00038028,2]
[340617447,1729536632330,-180.404,0.00038028,2]
[340617448,1729536632341,-500.0,0.000381,2]
[340617449,1729536632350,-5303.531,0.00041028,2]
[340617450,1729536632361,-150.0,0.00041028,2]
[340617451,1729536632371,-174.461,0.00041158,60]
[340617452,1729536632380,-2663.817,0.00041158,60]
[340617453,1729536632391,-4028.0,0.000427,117]
[340617454,1729536632401,-150.99,0.000427,30]
[340617455,1729536632412,-2632.04946135,0.00043,2]
[340617456,1729536632423,-419.6,0.00043429,2]
[340617457,1729536632433,-6708.54,0.00043429,2]
[340617458,1729536632443,-20580.95055697,0.00043429,30]
[340617459,1729536632456,-1433.92938975,0.00043429,30]
[340617460,1729536632468,-692.0,0.00043429,30]
[340617461,1729536632521,-2552.61005328,0.00043429,30]
[340617462,1729536632532,-8236.9,0.00043429,2]
[340617463,1729536632542,-250.0,0.00043671,2]
[340617464,1729536632555,-6042.0,0.000437,117]
[340617465,1729536632565,-5639.2,0.000437,117]
[340617466,1729536632574,-925.43,0.00043704,2]
[340617467,1729536632584,-11215.1,0.0004381,60]
[340617468,1729536632594,-2059.82,0.00044155,2]
[340617469,1729536632604,-250.0,0.00044169,2]
[340617470,1729536632614,-176.73,0.00044495,120]
[340617471,1729536632623,-758.95,0.00044537,2]
[340617472,1729536632633,-1000.0,0.00044538,2]
[340617473,1729536632643,-250.0,0.00044553,120]
[340617474,1729536632652,-157.0,0.00044553,2]
[340617475,1729536632662,-261.9636,0.00044628,2]
[340617476,1729536632672,-200.28,0.0004469,10]
[340617477,1729536632681,-834.55,0.0004469,10]
[340617478,1729536632691,-11681.8301914,0.000447,117]
[340617479,1729536632700,-2751.0,0.00044728,120]
[340617480,1729536632710,-219.23,0.0004475,120]
[340617481,1729536632720,-174.57,0.00044953,120]
[340617482,1729536632730,-150.01,0.00044965,120]
[340617483,1729536632740,-178.53,0.00045509,120]
[340617484,1729536632750,-166.9,0.00045609,10]
[340617485,1729536632759,-392.13007046,0.00045618,2]
[340617486,1729536632770,-23900.0,0.00045619,2]
[340617487,1729536632782,-419.6,0.00045692,2]
[340617488,1729536632791,-8001.2338,0.000457,2]
[340617489,1729536632803,-12141.8158,0.000457,2]
[340617490,1729536632813,-970.5,0.00045789,120]
[340617491,1729536632823,-692.0,0.0004579,30]
[340617492,1729536632834,-500.0,0.00045799,120]
[340617493,1729536632844,-52303.28410455,0.000458,30]
[340617494,1729536632853,-5290.09619823,0.000459,15]
[340617495,1729536632864,-155.08364934,0.000459,120]
[340617496,1729536632874,-152.0,0.00046,120]
[340617497,1729536632884,-970.5,0.00046063,120]
[340617498,1729536632894,-500.0,0.00046073,120]
[340617499,1729536632904,-155.08364934,0.00046211,120]
[340617500,1729536632914,-440.43,0.00046302,120]
[340617501,1729536632924,-970.5,0.00046337,120]
[340617502,1729536632934,-156.638976,0.000465,60]
[340617503,1729536632943,-970.5,0.00046611,120]
[340617504,1729536632953,-155.08364934,0.00046733,120]
[340617505,1729536632963,-829.0,0.00046885,30]
[340617506,1729536632972,-970.5,0.00046885,120]
[340617507,1729536632983,-50000.0,0.00047,120]
[340617508,1729536632993,-970.5,0.00047159,120]
[340617509,1729536633003,-155.08364934,0.00047256,120]
[340617510,1729536633014,-500.0,0.00047332,120]
[340617511,1729536633210,-2453.8756,0.00047333,2]
[340617512,1729536633223,-219.23,0.00047334,120]
[340617513,1729536633232,-324.26393069,0.000474,28]
[340617514,1729536633242,-970.5,0.00047433,120]
[340617515,1729536633251,-272.08576692,0.00047453,120]
[340617516,1729536633263,-1372.25423308,0.00047453,120]
[340617517,1729536633272,-3201.74576692,0.00047454,15]
[340617525,1729536638365,-669.0,0.00044169,2]
[340617526,1729536638378,-331.0,0.00044169,2]
[340617527,1729536638388,-450.0,0.00044495,120]
[340617528,1729536638398,-2088.35043125,0.00047454,15]
[340617529,1729536638408,-50000.0,0.000475,120]
[340617530,1729536638418,-400.0,0.000475,17]
[340617531,1729536638427,-900.0,0.000476,17]
[340617532,1729536638437,-500.0,0.00047606,120]
[340617533,1729536638446,-715.77246939,0.00047664,120]
[340617534,1729536638455,-500.0,0.00047665,120]
[340617535,1729536638465,-500.0,0.00047665,120]
[340617536,1729536638475,-500.0,0.00047665,120]
[340617537,1729536638485,-500.0,0.00047665,120]
[340617538,1729536638495,-699.29,0.00047665,120]
[340617539,1729536638504,-1400.0,0.000477,17]
[340617540,1729536638514,-970.5,0.00047707,120]
[340617541,1729536638524,-200.0,0.00047724,60]
[340617542,1729536638534,-1644.34,0.00047727,120]
[340617543,1729536638544,-1240.22753658,0.00047729,60]
[340617544,1729536638554,-12316.6676,0.00047734,60]
[340617545,1729536638564,-204.1009492,0.00047739,25]
[340617546,1729536638574,-122319.09630914,0.0004774,60]
[340617547,1729536638583,-680.24874588,0.0004774,60]
[340617548,1729536638593,-680.24874588,0.00047742,60]
[340617549,1729536638603,-487.97697827,0.00047745,60]
[340617550,1729536638612,-680.24874588,0.00047752,60]
[340617551,1729536638622,-2000.0,0.0004776,2]
[340617552,1729536638631,-19475.92817105,0.0004776,60]
[340617553,1729536638641,-487.97697827,0.00047761,60]
[340617554,1729536638651,-19475.92817105,0.00047763,60]
[340617555,1729536638660,-155.08364934,0.00047778,120]
[340617556,1729536638669,-1610.68511244,0.00047783,60]
[340617557,1729536638679,-1240.22753658,0.00047787,60]
[340617558,1729536638689,-12316.6676,0.00047793,60]
[340617559,1729536638698,-1900.0,0.000478,17]
[340617560,1729536638707,-1610.68511244,0.00047801,60]
[340617561,1729536638717,-8593.01092306,0.00047805,60]
[340617562,1729536638729,-3723.65667694,0.00047805,60]
[340617563,1729536638738,-2286.69774961,0.00047807,60]
[340617564,1729536638751,-2274.87949625,0.00047807,60]
[340617565,1729536638760,-1610.68511244,0.0004781,60]
[340617566,1729536638770,-5322.31525732,0.00047813,60]
[340617567,1729536638783,-534.8314,0.00047813,60]
[340617568,1729536638794,-585.3859411,0.00047813,60]
[340617682,1729536640368,-1054.12459679,0.00047813,60]
[340617684,1729536640379,-2410.05324498,0.00047813,60]
[340617702,1729536640536,-303.61375422,0.00047813,60]
[340617704,1729536640548,-2106.34340559,0.00047813,60]
[340617706,1729536640558,-14668.1385944,0.00047813,60]
[340617818,1729536643347,-1006.62630079,0.00047813,60]
[340617819,1729536643359,-352.72799642,0.00047813,60]
[340617820,1729536643370,-10071.59929662,0.00047813,60]
[340617821,1729536643382,-13092.63179293,0.00047813,60]
[340617822,1729536643394,-675.26754251,0.00047813,60]
[340617823,1729536643405,-489.29187735,0.00047813,60]
[340617824,1729536643417,-1175.26064,0.00047813,60]
[340617825,1729536643437,-3075.72210345,0.00047813,60]
[340617826,1729536643481,-676.24844252,0.00047813,60]
[340617829,1729536643832,-9064.55894258,0.00047813,60]
[340617830,1729536643841,-4561.57724586,0.00047814,60]
[340617831,1729536643851,-151.49,0.00047817,2]
[340617832,1729536643859,-8435.21787457,0.0004782,60]
[340617833,1729536643871,-701.666667,0.0004782,60]
[340617834,1729536643883,-3179.78305843,0.0004782,60]
[340617835,1729536643892,-19475.92817105,0.00047828,60]
[340617836,1729536643902,-19475.92817105,0.0004783,60]
[340617837,1729536643911,-200.0,0.00047831,60]
[340617838,1729536643920,-122319.09630914,0.00047837,60]
[340617839,1729536643929,-680.24874588,0.00047839,60]
[340617840,1729536643939,-680.24874588,0.00047842,60]
[340617841,1729536643948,-161.12080962,0.00047844,29]
[340617842,1729536643958,-4561.57724586,0.00047852,60]
[340617843,1729536643969,-464.0,0.00047857,7]
[340617844,1729536643978,-151.49,0.00047865,2]
[340617845,1729536643988,-1610.68511244,0.00047871,60]
[340617846,1729536643997,-375.0,0.00047874,14]
[340617847,1729536644006,-122319.09630914,0.00047874,60]
[340617848,1729536644016,-200.0,0.00047878,60]
[340617849,1729536644026,-223.01183237,0.00047879,31]
[340617850,1729536644035,-530.77786715,0.0004788,120]
[340617851,1729536644045,-487.97697827,0.00047881,60]
[340617852,1729536644057,-431.85962577,0.00047886,60]
[340617853,1729536644067,-151.49,0.0004789,2]
[340617854,1729536644076,-1610.68511244,0.00047893,60]
[340617855,1729536644086,-88888.0,0.000479,120]
[340617856,1729536644095,-2300.0,0.000479,17]
[340617857,1729536644105,-819.60201252,0.000479,2]
[340617858,1729536644114,-192.42130376,0.000479,2]
[340617859,1729536644124,-4561.57724586,0.00047907,60]
[340617860,1729536644134,-3512.41447931,0.00047907,60]
[340617861,1729536644143,-431.85962577,0.0004791,60]
[340617862,1729536644153,-8467.79485692,0.00047912,90]
[340617863,1729536644162,-1240.22753658,0.00047916,60]
[340617864,1729536644171,-5355.0728695,0.00047918,90]
[340617865,1729536644181,-8467.79485692,0.00047926,90]
[340617866,1729536644191,-53182.21578653,0.00047926,90]
[340617867,1729536644200,-4561.57724586,0.00047927,60]
[340617868,1729536644210,-295.76032423,0.0004793,90]
[340617869,1729536644219,-680.24874588,0.00047931,60]
[340617870,1729536644228,-487.97697827,0.00047931,60]
[340617871,1729536644238,-151.49,0.00047934,2]
[340617872,1729536644248,-431.85962577,0.00047938,60]
[340617873,1729536644257,-500.0,0.00047939,120]
[340617874,1729536644267,-500.0,0.00047939,120]
[340617875,1729536644277,-500.0,0.00047939,120]
[340617876,1729536644286,-500.0,0.00047939,120]
[340617877,1729536644296,-699.29,0.00047939,120]
[340617878,1729536644307,-122319.09630914,0.00047944,60]
[340617879,1729536644316,-462.45634596,0.00047944,30]
[340617880,1729536644330,-500.0,0.00047945,120]
[340617881,1729536644340,-500.0,0.00047945,120]
[340617882,1729536644350,-645.86111889,0.00047945,120]
[340617883,1729536644360,-151.49,0.00047947,2]
[340617884,1729536644370,-3512.41447931,0.00047947,60]
[340617885,1729536644380,-2000.0,0.00047948,120]
[340617886,1729536644392,-9203.96591956,0.00047949,60]
[340617887,1729536644405,-27325.08633692,0.00047949,60]
[340617888,1729536644418,-85790.04405266,0.00047949,60]
[340617889,1729536644427,-3512.41447931,0.00047952,60]
[340617890,1729536644436,-1610.68511244,0.00047954,60]
[340617891,1729536644446,-8467.79485692,0.00047955,90]
[340617892,1729536644455,-419.6,0.00047956,2]
[340617893,1729536644465,-53182.21578653,0.00047957,90]
[340617894,1729536644474,-295.76032423,0.00047959,90]
[340617895,1729536644484,-12316.6676,0.0004796,60]
[340617896,1729536644493,-295.76032423,0.0004796,90]
[340617897,1729536644502,-3470.56661861,0.00047962,60]
[340617898,1729536644513,-2534.83994209,0.00047962,60]
[340617899,1729536644524,-1269.9797806,0.00047962,60]
[340617904,1729536646330,-6728.28143599,0.00047962,60]
[340617905,1729536646375,-2399.99999999,0.00047962,60]
[340617906,1729536646515,-391.25464668,0.00047962,60]
[340617907,1729536646527,-784.03557856,0.00047962,60]
[340618194,1729536649390,250.0,0.0001,2]
[340618281,1729536650514,300.0,0.00012,2]
[340618378,1729536651604,350.0,0.00014,2]
[340618402,1729536652730,400.0,0.00016,2]
[340618403,1729536653825,450.0,0.00018,2]
[340618404,1729536661449,300.0,0.00019725,2]
[340618407,1729536800964,163.41,0.00010959,2]
[340618408,1729537004933,545.0,0.000218,2]
[340618409,1729537005541,518.0,0.000218,2]
[340618494,1729537831550,-1000.0,0.00033986,120]
[340618495,1729537831561,-150.0,0.0003704,7]
[340618496,1729537831571,-1631.46400936,0.00039452,30]
[340618497,1729537831582,-638.93927412,0.00039452,30]
[340618498,1729537831592,-500.0,0.00040828,2]
[340618499,1729537831602,-177.372,0.00040928,59]
[340618500,1729537831611,-2523.13147926,0.00040928,2]
[340618501,1729537831622,-1108.19691343,0.00040928,2]
[340618502,1729537831632,-324.02083683,0.00040928,2]
[340618503,1729537831643,-749.90013726,0.00040928,2]
[340618504,1729537831654,-926.26473678,0.00040928,2]
[340618505,1729537831665,-538.88,0.00040928,2]
[340618506,1729537831771,-1523.6372845,0.00040928,2]
[340618507,1729537831782,-3351.09963859,0.00040928,2]
[340618508,1729537831828,-7209.53188717,0.00040928,2]
[340618509,1729537831837,-4507.332,0.00040928,59]
[340618510,1729537831846,-299.99,0.00040928,120]
[340618511,1729537831855,-261.74,0.00040928,2]
[340618512,1729537831864,-499.99,0.00040928,2]
[340618513,1729537831874,-477.64,0.00040928,2]
[340618514,1729537831883,-150.99,0.00040928,2]
[340618515,1729537831892,-830.8,0.00040928,2]
[340618516,1729537831901,-1500.0,0.000438,2]
[340618517,1729537831911,-366.66,0.00044064,2]
[340618518,1729537831921,-12130.6395225,0.0004556,120]
[340618519,1729537831930,-18691.33,0.0004557,2]
[340618520,1729537831939,-725.91,0.00045622,2]
[340618521,1729537831948,-1000.0,0.00045636,2]
[340618522,1729537831957,-250.0,0.00045651,120]
[340618523,1729537831966,-250.0,0.00045683,2]
[340618524,1729537831975,-150.01,0.00045689,120]
[340618525,1729537831985,-150.0,0.00045699,4]
[340618526,1729537831994,-6444.8,0.000457,117]
[340618527,1729537832004,-264.25,0.00045729,120]
[340618528,1729537832015,-1500.0,0.00045729,2]
[340618529,1729537832024,-250.0,0.00045765,120]
[340618530,1729537832033,-197.3,0.00045855,120]
[340618531,1729537832043,-157.0,0.00045877,2]
[340618532,1729537832053,-366.66,0.00046328,2]
[340618533,1729537832064,-158.91,0.00046596,2]
[340618534,1729537832073,-500.0,0.00047665,120]
[340618535,1729537832082,-1000.0,0.00047671,120]
[340618536,1729537832091,-4424.24254745,0.000477,15]
[340618537,1729537832100,-182.1578,0.00047721,2]
[340618538,1729537832110,-1641.989,0.00047721,2]
[340618539,1729537832119,-5574.03181644,0.00047732,60]
[340618540,1729537832128,-155.08364934,0.00047733,120]
[340618541,1729537832137,-39753.70630049,0.00047734,60]
[340618542,1729537832147,-680.88733413,0.00047751,60]
[340618543,1729537832156,-2000.0,0.0004776,2]
[340618544,1729537832165,-306.79563047,0.00047774,28]
[340618545,1729537832174,-200.0,0.00047782,60]
[340618546,1729537832183,-5574.03181644,0.00047784,60]
[340618547,1729537832192,-346.0,0.0004779,30]
[340618548,1729537832202,-200.0,0.00047791,60]
[340618549,1729537832213,-3202.33357601,0.00047793,60]
[340618550,1729537832222,-1274.89504287,0.00047794,30]
[340618551,1729537832232,-29713.3403,0.000478,2]
[340618552,1729537832241,-200.0,0.00047808,60]
[340618553,1729537832251,-200.0,0.00047815,60]
[340618554,1729537832261,-3202.33357601,0.00047816,60]
[340618555,1729537832270,-5574.03181644,0.00047822,60]
[340618556,1729537832279,-687.04951546,0.00047833,20]
[340618557,1729537832288,-39753.70630049,0.00047835,60]
[340618558,1729537832297,-200.0,0.00047848,60]
[340618559,1729537832307,-500.0,0.00047849,120]
[340618560,1729537832316,-1507.31,0.00047849,120]
[340618561,1729537832326,-500.0,0.00047849,120]
[340618562,1729537832336,-500.0,0.00047849,120]
[340618563,1729537832347,-39753.70630049,0.0004785,60]
[340618564,1729537832357,-500.0,0.00047864,120]
[340618565,1729537832366,-647.26,0.00047864,120]
[340618566,1729537832375,-3202.33357601,0.00047865,60]
[340618567,1729537832384,-3202.33357601,0.00047871,60]
[340618568,1729537832393,-43467.47660048,0.00047874,2]
[340618569,1729537832405,-159.55249952,0.00047874,2]
[340618570,1729537832415,-2292.6461,0.00047874,2]
[340618571,1729537832425,-5574.03181644,0.00047875,60]
[340618572,1729537832435,-3202.33357601,0.00047877,60]
[340618573,1729537832446,-182.92417128,0.000479,23]
[340618574,1729537832456,-160.99259202,0.000479,30]
[340618575,1729537832465,-16155.2153711,0.000479,10]
[340618576,1729537832475,-296.0379713,0.00047904,90]
[340618577,1729537832484,-296.0379713,0.00047904,90]
[340618578,1729537832493,-8546.4867082,0.0004791,60]
[340618583,1729537838120,-255.436755,0.0004791,60]
[340618584,1729537838132,-515.72,0.0004791,60]
[340618585,1729537838144,-5496.59907277,0.0004791,60]
[340618586,1729537838287,-586.27968751,0.0004791,60]
[340618587,1729537838298,-500.0,0.0004791,60]
[340618588,1729537838310,-1709.83880005,0.0004791,60]
[340618589,1729537838321,-863.89819992,0.0004791,60]
[340618590,1729537838333,-21279.44707704,0.0004791,60]
[340618591,1729537838342,-2307.88791015,0.00047916,10]
[340618592,1729537838352,-200.0,0.00047918,60]